Cogmind - Beta 13 @@@ ROGUE MODE // 2024.06.07 @ 19:56:12 Player: Quiggsy Result: Self-destructed Performance ------------- Evolutions (1) 500 Regions Visited (2) 400 Robots Destroyed (13) 65 Value Destroyed (228) 228 Prototype IDs (0) 0 Alien Tech Used (0) 0 Bonus (0) 0 TOTAL SCORE: 1193 Bonus ------- None Cogmind --------- Core Integrity 250/400 Matter 8/300 Energy 60/100 System Corruption 0% Temperature Cool (0) Movement Flying (29) Location -9/Materials Parts ------- > --- POWER (2) -------- (None) > --- PROPULSION (3) --- Cesium-ion Thruster Cesium-ion Thruster Cesium-ion Thruster > --- UTILITY (2) ------ Small Storage Unit Targeting Computer > --- WEAPON (2) ------- (None) > --- INVENTORY (8) ---- Cesium-ion Thruster Propulsion Shielding Heavy Assault Rifle Mini Grenade Launcher Peak State ------------ > --- POWER ------------ Light Ion Engine Light Ion Engine > --- PROPULSION ------- Aluminum Leg Aluminum Leg Aluminum Leg > --- UTILITY ---------- Small Storage Unit Targeting Computer > --- WEAPON ----------- Grenade Launcher Mini Grenade Launcher > --- INVENTORY -------- Cesium-ion Thruster Cesium-ion Thruster Cesium-ion Thruster Cesium-ion Thruster Propulsion Shielding Light Cannon Light Cannon Grenade Launcher [Rating: 11] Favorites ----------- Power Light Ion Engine Engine Light Ion Engine Propulsion Aluminum Leg Treads Light Treads Leg Aluminum Leg Flight Unit Cesium-ion Thruster Utility Small Storage Unit Device Tractor Beam Storage Small Storage Unit Processor Targeting Computer Weapon Light Cannon Ballistic Gun Light Assault Rifle Ballistic Cannon Light Cannon Launcher Grenade Launcher Build | -11 -10 -9 ------- Run | Yrd Mat Mat Slots Evolved 2 | . . 2 Power 1 | . . 1 Propulsion 1 | . . 1 Utility . | . . . Weapon . | . . . Parts Attached 37 | 5 19 13 Power 9 | 1 3 5 Engine 9 | 1 3 5 Core . | . . . Reactor . | . . . Propulsion 13 | 2 7 4 Treads 3 | 2 1 . Leg 5 | . 4 1 Wheel . | . . . Hover . | . . . Flight 5 | . 2 3 Utility 4 | 1 3 . Device 1 | . 1 . Storage 1 | 1 . . Processor 2 | . 2 . Hackware . | . . . Protection . | . . . Artifact . | . . . Weapon 11 | 1 6 4 Energy Gun . | . . . Energy Cannon . | . . . Ballistic Gun 2 | 1 1 . Ballistic Cannon 7 | . 5 2 Launcher 2 | . . 2 Special Weapon . | . . . Impact Weapon . | . . . Slashing Weapon . | . . . Piercing Weapon . | . . . Special Melee Weapon . | . . . Unidentified Prototypes . | . . . Parts Lost 8 | . . 8 Power 3 | . . 3 Propulsion 3 | . . 3 Utility . | . . . Weapon 2 | . . 2 Highest Loss Streak 6 | . . 6 To Critical Strikes . | . . . Average Slot Usage (%) 88 | . 86 92 Engine 15 | . 13 19 Treads 9 | . 15 . Leg 18 | . 11 30 Device 1 | . 1 . Storage 12 | . 14 11 Processor 10 | . 10 11 Ballistic Gun 4 | . 7 . Ballistic Cannon 13 | . 10 17 Naked Turns . | . . . Heaviest Build 21 | 11 14 21 Greatest Support 40 | 40 40 30 Greatest Overweight (x) 3 | 1 3 3 Average Overweight (x) . | . . . Largest Inventory Capacity 8 | 8 8 8 Average Capacity 7 | 7 8 8 Most Carried 8 | 3 8 8 Average Carried 5 | 1 6 6 Final Capacity 8 | 8 8 8 Final Carried 7 | 3 7 4 Class Distribution -------------------- 100% | Mutant Dominant Class ---------------- Mutant | -10/Materials Mutant | -9/Materials Resources | -11 -10 -9 ----------- Run | Yrd Mat Mat Matter Collected 409 | 132 186 91 Remotely 31 | . 31 . Salvage Created 279 | . 199 80 Parts 27 | . 13 14 Haulers Intercepted . | . . . Recyclers Shooed . | . . . Parts Field Recycled . | . . . Retrieved Matter . | . . . Parts Self-Destructed . | . . . Prevented . | . . . Kills | -11 -10 -9 ------- Run | Yrd Mat Mat Combat Hostiles Destroyed 11 | . 5 6 Guns 3 | . 3 . Cannons 8 | . 2 6 Classes Destroyed 5 | . 4 1 Recycler 1 | . 1 . Watcher 1 | . 1 . Swarmer 8 | . 3 5 Grunt 2 | . 2 . Sentry 1 | . . 1 Best Kill Streak 3 | . 3 3 Combat Bots Only 3 | . 2 3 Max Kills in Single Turn 1 | . 1 1 Gunslinging . | . . . Exploded . | . . . Melee . | . . . Uniques/NPCs Destroyed . | . . . Combat | -11 -10 -9 -------- Run | Yrd Mat Mat Hostile Shots Fired 134 | . 34 100 Missed 35 | . 9 26 Damage Taken 1048 | . 261 787 Core 187 | . 37 150 Absorbed by Shields . | . . . Core Remaining (%) 92 | 100 85 . Volleys Fired 32 | . 22 10 Largest 2 | . 2 2 Hottest 70 | . 70 70 Shots Fired 49 | . 29 20 Gun 14 | . 14 . Cannon 33 | . 15 18 Launcher 2 | . . 2 Special . | . . . Kinetic 47 | . 29 18 Thermal . | . . . Explosive 2 | . . 2 Electromagnetic . | . . . Robot Hit Streak 5 | . 5 5 Robot Miss Streak 4 | . 4 3 Penetration Max . | . . . Secondary Targets . | . . . Shots Hit Robots 28 | . 17 11 Core Hits 18 | . 10 8 Critical Kills . | . . . Critical Parts Destroyed . | . . . Critical Strikes . | . . . Melee Attacks . | . . . Impact . | . . . Slashing . | . . . Piercing . | . . . Sneak Attacks . | . . . Combat Hostiles . | . . . Follow-up Attacks . | . . . Damage Inflicted 442 | . 233 209 Guns 53 | . 53 . Cannons 340 | . 180 160 Explosions 45 | . . 45 Melee . | . . . Ramming 4 | . . 4 Kinetic 393 | . 233 160 Thermal . | . . . Explosive 45 | . . 45 Electromagnetic . | . . . Impact . | . . . Slashing . | . . . Piercing . | . . . Highest Corruption 4 | . 4 . Average Corruption 3 | . 3 . Corruption Purged . | . . . Corruption Blocked . | . . . Effects 4 | . 4 . Matter Fused 1 | . 1 . Data Loss (minor) 2 | . 2 . Data Loss (major) 1 | . 1 . Overload Shots . | . . . Overflow Damage . | . . . Projectiles . | . . . Explosions . | . . . Melee . | . . . Knockbacks 4 | . 1 3 Impact . | . . . Kinetic 4 | . 1 3 Secondary . | . . . Self-Inflicted Damage . | . . . Shots . | . . . Rammed . | . . . Targets Rammed 1 | . . 1 Kicked 1 | . . 1 Crushed . | . . . Highest Temperature 81 | . 81 78 Average Temperature 31 | . 36 29 Received Heat Transfer 426 | . 72 354 Siege Activations . | . . . Robots Corrupted . | . . . Combat Hostiles . | . . . Parts Fried . | . . . Impact Corruptions . | . . . Robots Melted . | . . . Combat Hostiles . | . . . Parts Melted . | . . . Heat Transferred . | . . . Parts Sabotaged . | . . . Parts Stolen . | . . . Parts Stripped . | . . . Power Chain Reactions . | . . . Alert | -11 -10 -9 ------- Run | Yrd Mat Mat Peak Influence 221 | . 100 221 Initial 32 | . . 32 Average 64 | . 55 107 Maximum Alert Level 1 | . . 1 Low Security (%) 95 | 100 100 85 Level 1 4 | . . 14 Level 2 . | . . . Level 3 . | . . . Level 4 . | . . . Level 5 . | . . . High Security . | . . . Max Security . | . . . Squads Dispatched . | . . . Investigation . | . . . Extermination . | . . . Reinforcement . | . . . Assault . | . . . Garrison . | . . . Intercept . | . . . Searches Triggered . | . . . Construction Impeded . | . . . Haulers Reinforced . | . . . Active Scanning Responses . | . . . Cargo Convoy Interrupts . | . . . Stealth | -11 -10 -9 --------- Run | Yrd Mat Mat Distress Signals . | . . . Communications Jammed . | . . . Distress Signals . | . . . Times Spotted 22 | . 10 12 Peak Tracking Total 6 | . 4 6 Tactical Retreats 3 | . 1 2 Traps | -11 -10 -9 ------- Run | Yrd Mat Mat Traps Triggered 8 | . 8 . Indirectly . | . . . Trap Hack Attempts . | . . . Triggered . | . . . Disarmed . | . . . Reprogrammed . | . . . Reused . | . . . Traps Extracted . | . . . Installed . | . . . Triggered . | . . . Machines | -11 -10 -9 ---------- Run | Yrd Mat Mat Machines Disabled . | . . . Max in Single Turn . | . . . Machines Repaired . | . . . Machines Dismantled . | . . . Machines Sabotaged . | . . . Overloaded Fab Kills . | . . . Hacking | -11 -10 -9 --------- Run | Yrd Mat Mat Machines Accessed . | . . . Terminals . | . . . Fabricators . | . . . Repair Stations . | . . . Recycling Units . | . . . Scanalyzers . | . . . Garrison Access . | . . . Total Hacks . | . . . Successful . | . . . Failed . | . . . Catastrophic . | . . . Database Lockouts . | . . . Manual . | . . . Terminals . | . . . Fabricators . | . . . Repair Stations . | . . . Recycling Units . | . . . Scanalyzers . | . . . Garrison Access . | . . . Terminal Hacks . | . . . Fabricator Hacks . | . . . Repair Station Hacks . | . . . Recycling Unit Hacks . | . . . Scanalyzer . | . . . Garrison Access Hacks . | . . . Unauthorized Hacks . | . . . Terminals . | . . . Fabricators . | . . . Repair Stations . | . . . Recycling Units . | . . . Scanalyzers . | . . . Garrison Access . | . . . Data Cores Recovered . | . . . Used . | . . . Hacking Detections . | . . . Full Trace Events . | . . . Feedback Events . | . . . Feedback Blocked . | . . . Robot Schematics Acquired . | . . . Robots Built . | . . . Authchips . | . . . Time . | . . . Total Robot Build Rating . | . . . Part Schematics Acquired . | . . . Parts Built . | . . . Authchips . | . . . Time . | . . . Total Part Build Rating . | . . . Parts Repaired . | . . . Time . | . . . Parts Recycled . | . . . Recycled Matter . | . . . Retrieved Matter . | . . . Retrieved Components . | . . . Parts Scanalyzed . | . . . Part Schematics Acquired . | . . . Parts Damaged . | . . . Bothacking | -11 -10 -9 ------------ Run | Yrd Mat Mat Used RIF Installer . | . . . Robots Hacked . | . . . Non-combat . | . . . Combat . | . . . Robot Hacks Applied . | . . . Relay Couplers Released . | . . . Fabnet Peak Effective % . | . . . Robots Rewired . | . . . Allies Hacked . | . . . Hacks Repelled . | . . . Allies | -11 -10 -9 -------- Run | Yrd Mat Mat Total Allies . | . . . Largest Group . | . . . Highest-Rated Group . | . . . Highest-Rated Ally . | . . . Total Orders . | . . . Ally Attacks . | . . . Total Damage . | . . . Kills . | . . . Allies Corrupted . | . . . Allies Melted . | . . . Intel | -11 -10 -9 ------- Run | Yrd Mat Mat Robot Analysis Total . | . . . Derelict Logs Recovered . | . . . Drone Launches . | . . . Drone Recoveries . | . . . Exploration | -11 -10 -9 ------------- Run | Yrd Mat Mat Turns Passed 1081 | 149 591 341 Spaces Moved 714 | 91 353 270 Core 10 | 6 3 1 Treads 269 | 85 184 . Legs 366 | . 152 214 Wheels . | . . . Hover . | . . . Flight 69 | . 14 55 Fastest Speed 29 | 50 37 29 Average Speed 126 | 153 138 102 Slowest Speed 200 | 160 200 200 Overloaded Moves . | . . . Propulsion Burnouts . | . . . Robots Hopped 2 | . . 2 Cave-ins Triggered . | . . . Exploration Rate (%) 31 | 5 65 25 Regions Visited 2 Branch Regions . Pre-discovered Areas . | . . . Known Exits Taken 1 | . 1 . Unknown Exits Taken 1 | 1 . . Scrap Searched . | . . . Spaces Dug . | . . . Terrain Destroyed 17 | . . 17 Melee . | . . . Projectile . | . . . AOE 17 | . . 17 Terrain Rammed . | . . . Walls Destroyed . | . . . Machines Disabled . | . . . Actions | -11 -10 -9 --------- Run | Yrd Mat Mat Total 835 | 98 424 313 Wait 20 | . 18 2 Move 708 | 90 352 266 Hop 2 | . . 2 Pick Up 22 | 3 8 11 Fast Attach 20 | 5 15 . Attach 9 | . 3 6 Detach 2 | . 2 . Swap 8 | . 1 7 Drop 11 | . 3 8 Fire 32 | . 22 10 Melee . | . . . Ram . | . . . Kick 1 | . . 1 Crush . | . . . Escape Stasis . | . . . Rewire . | . . . Trap . | . . . Miscellaneous . | . . . Route ------- -11/Scrapyard -10/Materials (discovered 3 exits: *Mat x2 / [*Min]) -9/Materials (discovered 2 exits: [*Mat] / [*Min]) History --------- Turn | Location | Event 6 | -11/Scrapyard | Discovered new exit (range 16) 150 | -11/Scrapyard | Entered Materials 330 | -10/Materials | Build established: Mutant 330 | -10/Materials | Discovered new exit (range 6) 467 | -10/Materials | Discovered new exit (range 7) 484 | -10/Materials | Identified exit to Materials 607 | -10/Materials | Discovered exit to Materials (range 8) 741 | -10/Materials | Entered another Materials area 741 | -9/Materials | Evolved 2 slots: Power x1, Propulsion x1 1000 | -9/Materials | Discovered new exit (range 11) 1042 | -9/Materials | Discovered new exit (range 15) 1082 | -9/Materials | Self-destructed Last Messages --------------- Dropped Lgt. Ion Engine. Acquired Lgt. Ion Engine. Dropped Lgt. Ion Engine. Acquired Lgt. Ion Engine. S-10 Pest destroyed. Acquired 13 matter. S-10 Pest destroyed. Kicked G-34 Mercenary out of the way. Acquired 6 matter. G-34 Mercenary knocked back. Lgt. Ion Engine destroyed. Acquired 4 matter. EXIT=FOUND Acquired 1 matter. Lgt. Cannon destroyed. EXIT=FOUND Lgt. Cannon destroyed. Lgt. Ion Engine destroyed. Aluminum Leg destroyed. Imp. Ion Engine destroyed. Map ----- +----------------------------------------------------+ | | | | | | | | | | | | | | | | | | | | | | | | | | | | | | | | | | | | | | | ????????????????????????????????????????????? | | ????????????????????????????????????????????? | | ?##############?????????????????????????????? | | ?# = # #?????????????????????????????? | | ?# # ########??????????????????????? | | ?# """ + #??????????????????????? | | ?# """ # ######@#???????########???????? | | ?# """ # #????#s#???????# #???????? | | ?# #######????# #???????# #???????? | | ?########??????????# #?#####?# """ #???????? | | ????????????####???# #?#!! #?# """ #???????? | | ????????????#"""#??# #?#!! #?# """ #???????? | | ??????????##"!!!"### #?#!! #?# #???????? | | ??????????#"" ""##g#?#!! ######+########### | | ??????????# ##g#?#!! | | ??????????# < ##g#?#!! | | ??????????# ?# #?##### | | ??????????# ?# #?????# ##+########### | | ???????????# ??#m#????## ## #???????? | | ????????????# #### ###### # #???????? | | ????????????# # #???????? | | ????????????# T # #???????? | | ?############ *** # #???????? | | ?# ## *** ##### # #???????? | | ?# # ** #???####### #???????? | | ?# """ """*#[ #?????????#####???????? | | ?# """ """[+= #?????????????????????? | | ?# """ """ # ][ #?????????????????????? | | ?# *= # % ][ #?????????????????????? | | ?# [ # ] #?????????????????????? | | ?# =*[* # + ???????????????????? | +----------------------------------------------------+ Best States ------------- Heat Dissipation 28 Energy Generation 17 Energy Capacity 290 Matter Stores 195 Matter Capacity 300 Sight Range 16 Terrain Scan Density 10 Evasion (%) 64 Targeting Accuracy 5 Recoil Reduction 2 Item Schematics ----------------- None Robot Schematics ------------------ None Fabricated ------------ Nothing Alien Tech Used ----------------- None Achievements -------------- Oops Challenges ------------ None Game ------ Seed WaveDisposableAutobeam Manual? 0 Play Time 00:18:13 Cumulative 5.0 hours Start 2024.06.07 @ 19:39:42 End 2024.06.07 @ 19:56:12 Sessions 1 Manual Loads 0 Difficulty Rogue Special Mode None Game No. 6 Rogue 6 Adventurer 0 Explorer 0 Win Type - Total 0 Types 0/0/0/0/0/0/0/0/0 Lore% 1 Gallery% 9 Achievement% 8 Wizard Run 0 Options --------- Layout 1 ASCII 0 Keyboard 0 Movement Numpad Keybinds 0 Fullscreen 2 Font 24/Cog Map View 50x35 Zoom Use 0% Tactical HUD 0 Map Filters NONE Filters NONE Steam 1 RUN: cb6e66a9-b234-4202-88b5-fedf45d8a3ac